fUSD/lending_fUSD_20241219
["ID","MTS","AMOUNT","RATE_DAILY","PERIOD"]
[346005174,1734619863233,-150.0,0.00024192,2]
[346005175,1734619863243,-150.0,0.00024192,2]
[346005176,1734619863254,-150.0,0.00024192,2]
[346005177,1734619863264,-300.0,0.00024192,2]
[346005178,1734619863274,-364.93,0.00024192,2]
[346005179,1734619863285,-364.93,0.00024192,2]
[346005180,1734619863299,-150.0,0.00024192,2]
[346005181,1734619863309,-364.93,0.00024192,2]
[346005182,1734619863319,-150.0,0.00024192,2]
[346005183,1734619863328,-364.93,0.00024192,2]
[346005184,1734619863341,-215.16,0.00024192,2]
[346005185,1734619863355,-1000.0,0.000242,2]
[346005186,1734619863367,-31545.81419242,0.00024223,2]
[346005187,1734619863378,-1980.07,0.00024235,7]
[346005188,1734619863389,-1980.07,0.00024235,7]
[346005189,1734619863399,-616.8296998,0.00024245,2]
[346005190,1734619863411,-150.73032653,0.00024247,2]
[346005191,1734619863421,-211.0,0.0002425,2]
[346005192,1734619863431,-150.0,0.00024288,2]
[346005193,1734619863443,-150.0,0.00024289,4]
[346005194,1734619863458,-2800.0,0.000243,8]
[346005195,1734619863469,-50377.20501297,0.0002432,3]
[346005196,1734619863481,-1000.0,0.0002435,10]
[346005197,1734619863493,-12500.0,0.00024356,2]
[346005198,1734619863503,-19822.80890349,0.00024379,2]
[346005199,1734619863514,-783.0,0.00024383,4]
[346005200,1734619863527,-500.0,0.00024383,4]
[346005201,1734619863542,-500.0,0.00024383,4]
[346005202,1734619863553,-500.0,0.00024383,4]
[346005203,1734619863564,-566.11366948,0.00024383,4]
[346005204,1734619863575,-500.0,0.00024383,4]
[346005205,1734619863586,-500.0,0.00024383,4]
[346005206,1734619863596,-500.0,0.00024383,4]
[346005207,1734619863607,-500.0,0.00024383,4]
[346005208,1734619863618,-500.0,0.00024383,4]
[346005209,1734619863630,-500.0,0.00024383,4]
[346005210,1734619863641,-500.0,0.00024383,4]
[346005211,1734619863652,-500.0,0.00024383,4]
[346005212,1734619863664,-500.0,0.00024383,4]
[346005213,1734619863676,-568.48,0.00024383,4]
[346005214,1734619863687,-583.13831787,0.00024383,4]
[346005215,1734619863697,-642.71,0.00024383,4]
[346005216,1734619863707,-533.56,0.00024383,4]
[346005217,1734619863718,-500.0,0.00024383,4]
[346005218,1734619863729,-722.07,0.00024383,4]
[346005219,1734619863744,-500.0,0.00024383,4]
[346005220,1734619863755,-508.2,0.00024383,4]
[346005221,1734619863765,-500.0,0.00024383,4]
[346005222,1734619863777,-500.0,0.00024383,4]
[346005223,1734619863791,-500.0,0.00024383,4]
[346005224,1734619863803,-500.0,0.00024383,4]
[346005225,1734619863814,-744.53,0.00024383,4]
[346005226,1734619863824,-500.0,0.00024383,4]
[346005227,1734619863835,-1000.0,0.00024383,2]
[346005228,1734619863845,-500.0,0.00024383,4]
[346005229,1734619863856,-500.0,0.00024383,4]
[346005230,1734619863867,-868.35,0.00024383,4]
[346005231,1734619863878,-500.0,0.00024383,4]
[346005232,1734619863890,-405.38426399,0.00024383,4]
[346005233,1734619863901,-500.0,0.00024383,4]
[346005234,1734619863913,-554.96,0.00024383,4]
[346005235,1734619863923,-529.80574538,0.00024383,4]
[346005236,1734619863934,-783.95,0.00024383,4]
[346005237,1734619863944,-500.0,0.00024383,4]
[346005238,1734619863953,-500.0,0.00024383,4]
[346005239,1734619863964,-500.0,0.00024383,4]
[346005240,1734619863974,-527.81,0.00024383,4]
[346005241,1734619863985,-500.0,0.00024383,4]
[346005242,1734619863996,-500.0,0.00024383,4]
[346005243,1734619864006,-500.0,0.00024383,4]
[346005244,1734619864016,-500.0,0.00024383,4]
[346005245,1734619864029,-500.0,0.00024383,4]
[346005246,1734619864044,-500.0,0.00024383,4]
[346005247,1734619864054,-500.0,0.00024383,4]
[346005248,1734619864065,-500.0,0.00024383,4]
[346005249,1734619864075,-500.0,0.00024383,4]
[346005250,1734619864086,-687.78,0.00024383,4]
[346005251,1734619864097,-500.0,0.00024383,4]
[346005252,1734619864108,-500.0,0.00024383,4]
[346005253,1734619864119,-533.38,0.00024383,4]
[346005254,1734619864129,-500.0,0.00024383,4]
[346005255,1734619864142,-500.0,0.00024383,4]
[346005256,1734619864157,-500.0,0.00024383,4]
[346005257,1734619864167,-500.0,0.00024383,4]
[346005258,1734619864177,-500.0,0.00024383,4]
[346005259,1734619864187,-500.0,0.00024383,4]
[346005260,1734619864198,-500.0,0.00024383,4]
[346005261,1734619864208,-500.0,0.00024383,4]
[346005262,1734619864220,-500.0,0.00024383,4]
[346005263,1734619864230,-500.0,0.00024383,4]
[346005264,1734619864240,-1110.6,0.00024383,4]
[346005265,1734619864250,-500.0,0.00024383,4]
[346005266,1734619864311,-500.0,0.00024383,4]
[346005267,1734619864322,-500.0,0.00024383,4]
[346005268,1734619864332,-620.85,0.00024383,4]
[346005269,1734619864342,-781.0,0.00024383,4]
[346005270,1734619864352,-941.86,0.00024383,4]
[346005271,1734619864362,-857.05,0.00024383,4]
[346005272,1734619864372,-500.0,0.00024383,4]
[346005273,1734619864381,-749.03,0.00024383,4]
[346005274,1734619864392,-1379.54,0.00024383,4]
[346005275,1734619864402,-582.13,0.00024383,4]
[346005276,1734619864412,-664.17,0.00024383,4]
[346005277,1734619864422,-1288.35,0.00024383,4]
[346005278,1734619864431,-158.77744731,0.00024383,4]
[346005279,1734619864444,-712.26,0.00024383,4]
[346005280,1734619864454,-500.0,0.00024383,4]
[346005281,1734619864464,-377.18460547,0.00024383,4]
[346005282,1734619864473,-500.0,0.00024383,4]
[346005283,1734619864483,-500.0,0.00024383,4]
[346005284,1734619864492,-500.0,0.00024383,4]
[346005285,1734619864503,-1155.02,0.00024383,4]
[346005286,1734619864512,-526.64,0.00024383,4]
[346005287,1734619864522,-692.32,0.00024383,4]
[346005288,1734619864532,-1941.22,0.00024383,4]
[346005289,1734619864545,-1443.45,0.00024383,4]
[346005290,1734619864554,-500.0,0.00024383,4]
[346005291,1734619864564,-176.98,0.00024383,4]
[346005292,1734619864574,-4671.05,0.00024383,4]
[346005293,1734619864583,-666.18,0.00024383,4]
[346005294,1734619864593,-500.0,0.00024383,4]
[346005295,1734619864602,-500.0,0.00024383,4]
[346005296,1734619864612,-500.0,0.00024383,4]
[346005297,1734619864621,-507.17,0.00024383,4]
[346005298,1734619864631,-277.83,0.00024383,4]
[346005299,1734619864640,-500.0,0.00024383,4]
[346005300,1734619864649,-500.0,0.00024383,4]
[346005301,1734619864659,-500.0,0.00024383,4]
[346005302,1734619864671,-638.36,0.00024383,4]
[346005303,1734619864680,-500.0,0.00024383,4]
[346005304,1734619864689,-613.45,0.00024383,4]
[346005305,1734619864698,-500.0,0.00024383,4]
[346005306,1734619864707,-583.42,0.00024383,4]
[346005307,1734619864720,-500.0,0.00024383,4]
[346005308,1734619864729,-1342.63,0.00024383,4]
[346005309,1734619864738,-925.35,0.00024383,4]
[346005310,1734619864746,-552.75,0.00024383,4]
[346005311,1734619864756,-500.0,0.00024383,4]
[346005312,1734619864766,-592.13,0.00024383,4]
[346005313,1734619864775,-500.0,0.00024383,4]
[346005314,1734619864784,-2339.55,0.00024383,4]
[346005315,1734619864795,-500.0,0.00024383,4]
[346005316,1734619864804,-500.0,0.00024383,4]
[346005317,1734619864813,-1038.07,0.00024383,4]
[346005318,1734619864823,-1573.39,0.00024383,4]
[346005319,1734619864832,-500.0,0.00024383,4]
[346005320,1734619864841,-500.0,0.00024383,4]
[346005321,1734619864850,-500.0,0.00024383,4]
[346005322,1734619864860,-500.0,0.00024383,4]
[346005323,1734619864869,-965.55,0.00024383,4]
[346005324,1734619864878,-1681.79,0.00024383,4]
[346005325,1734619864887,-500.0,0.00024383,4]
[346005326,1734619864896,-1067.32,0.00024383,4]
[346005327,1734619864905,-1437.18,0.00024383,4]
[346005328,1734619864915,-500.0,0.00024383,4]
[346005329,1734619864924,-2714.35,0.00024383,4]
[346005330,1734619864933,-500.0,0.00024383,4]
[346005331,1734619864942,-1379.44,0.00024383,4]
[346005332,1734619864951,-500.0,0.00024383,4]
[346005333,1734619864961,-597.45816596,0.00024383,4]
[346005334,1734619864970,-500.0,0.00024383,4]
[346005335,1734619864980,-753.13,0.00024383,4]
[346005336,1734619864989,-500.0,0.00024383,4]
[346005337,1734619864998,-500.0,0.00024383,4]
[346005338,1734619865007,-500.0,0.00024383,4]
[346005339,1734619865016,-1073.6,0.00024383,4]
[346005340,1734619865025,-1094.17,0.00024383,4]
[346005341,1734619865034,-1087.63,0.00024383,4]
[346005342,1734619865048,-500.0,0.00024383,4]
[346005343,1734619865057,-1456.56,0.00024383,4]
[346005344,1734619865066,-594.1,0.00024383,4]
[346005345,1734619865075,-500.0,0.00024383,4]
[346005346,1734619865084,-500.0,0.00024383,4]
[346005347,1734619865093,-500.0,0.00024383,4]
[346005348,1734619865103,-500.0,0.00024383,4]
[346005349,1734619865112,-581.11,0.00024383,4]
[346005350,1734619865121,-500.0,0.00024383,4]
[346005351,1734619865130,-500.0,0.00024383,4]
[346005352,1734619865140,-2776.06,0.00024383,4]
[346005353,1734619865149,-545.99,0.00024383,4]
[346005354,1734619865157,-1708.04,0.00024383,4]
[346005355,1734619865167,-500.0,0.00024383,4]
[346005356,1734619865176,-500.0,0.00024383,4]
[346005357,1734619865185,-500.0,0.00024383,4]
[346005358,1734619865194,-1364.7,0.00024383,4]
[346005359,1734619865203,-500.0,0.00024383,4]
[346005360,1734619865212,-655.37,0.00024383,4]
[346005361,1734619865222,-1161.39,0.00024383,4]
[346005362,1734619865231,-500.0,0.00024383,4]
[346005363,1734619865239,-516.6,0.00024383,4]
[346005364,1734619865248,-500.0,0.00024383,4]
[346005365,1734619865258,-556.79,0.00024383,4]
[346005366,1734619865267,-500.0,0.00024383,4]
[346005367,1734619865275,-150.73032653,0.00024384,2]
[346005368,1734619865285,-500.0,0.000244,8]
[346005369,1734619865296,-161.8467164,0.000244,4]
[346005370,1734619865305,-6314.81559406,0.000244,7]
[346005371,1734619865314,-500.0,0.00024452,2]
[346005372,1734619865322,-2500.0,0.00024455,2]
[346005373,1734619865331,-209.1779004,0.00024493,4]
[346005374,1734619865340,-150.0,0.00024493,4]
[346005375,1734619865349,-719863.57076098,0.000245,3]
[346005376,1734619865510,-741.59999999,0.000245,3]
[346005377,1734619865656,-166.03621368,0.00021917,4]
[346005378,1734619865666,-500.0,0.00021917,4]
[346005379,1734619865676,-500.0,0.00021917,4]
[346005380,1734619865685,-500.0,0.00021917,4]
[346005381,1734619865694,-500.0,0.00021917,4]
[346005382,1734619865703,-266.99719474,0.000244,2]
[346005383,1734619865712,-496.74119405,0.00024493,2]
[346005384,1734619865723,-230.15880595,0.00024493,2]
[346005385,1734619865732,-6046.2716911,0.000245,3]
[346005386,1734619865741,-24290.58150296,0.000245,2]
[346005387,1734619865752,-1611.75,0.000245,2]
[346005388,1734619865763,-282.829833,0.000245,2]
[346005389,1734619865775,-256.09224003,0.000245,2]
[346005390,1734619865786,-26895.5275716,0.000245,2]
[346005391,1734619865803,-14373.7479946,0.000245,2]
[346005392,1734619865814,-557.6099985,0.000245,2]
[346005393,1734619865825,-145767.62256318,0.000245,2]
[346005394,1734619865834,-464.50395235,0.000245,2]
[346005395,1734619865843,-58727.87348447,0.000245,2]
[346005396,1734619865859,-263.04881759,0.000245,2]
[346005397,1734619865871,-2375.06517,0.000245,2]
[346005398,1734619865883,-15142.5,0.000245,2]
[346005400,1734620042531,166.83,0.00017437,2]
[346005401,1734620076093,172.78,0.00010137,2]
[346005406,1734620378445,525.0,0.00023,120]
[346005411,1734620839837,157.15,0.00020567,30]
[346005412,1734620887812,450.0,0.00013,2]
[346005414,1734620972346,156.34,0.00010137,2]
[346005437,1734621032012,-204.0,0.0001888,2]
[346005438,1734621032022,-204.0,0.0001929,2]
[346005439,1734621032031,-633.31,0.00019652,2]
[346005440,1734621032043,-38.4242738,0.000197,2]
[346005441,1734621032073,-165.5757262,0.000197,2]
[346005442,1734621032083,-202.0,0.0002011,2]
[346005443,1734621032094,-106.31774061,0.0002011,2]
[346005444,1734621032125,-97.68225939,0.0002011,2]
[346005445,1734621032134,-300.0,0.00020131,2]
[346005446,1734621032143,-217.06174035,0.00020132,2]
[346005447,1734621032179,-26309.87816245,0.00020132,2]
[346005448,1734621032190,-1000.09,0.00020132,2]
[346005449,1734621032929,-1778.9700972,0.00020132,2]
[346005450,1734621032939,-166.66666667,0.00020234,2]
[346005451,1734621032950,-211.63,0.00020405,2]
[346005452,1734621032960,-202.0,0.0002052,2]
[346005455,1734621033189,-204.0,0.0002052,2]
[346005456,1734621033200,-2476.25513613,0.00020534,2]
[346005457,1734621033213,-498.61997758,0.00020534,2]
[346005458,1734621033231,-17698.52488629,0.00020534,2]
[346005459,1734621033242,-1000.0,0.00020847,2]
[346005460,1734621033252,-576.32,0.00020886,2]
[346005461,1734621033262,-202.0,0.0002092,2]
[346005462,1734621033272,-204.0,0.0002092,2]
[346005463,1734621033282,-184.6,0.0002093,2]
[346005464,1734621033296,-470.49,0.00020944,2]
[346005465,1734621033305,-214.56658235,0.00021,2]
[346005466,1734621033315,-549.33,0.0002107,2]
[346005467,1734621033325,-623.401,0.00021092,2]
[346005468,1734621033335,-150.0,0.00021092,2]
[346005469,1734621033345,-250.0,0.00021101,2]
[346005470,1734621033355,-500.0,0.00021164,2]
[346005471,1734621033365,-4000.0,0.00021188,2]
[346005472,1734621033375,-543.36,0.00021289,2]
[346005473,1734621033386,-250.0,0.00021303,2]
[346005474,1734621033396,-202.0,0.0002133,2]
[346005475,1734621033405,-204.0,0.0002133,2]
[346005476,1734621033415,-167.25,0.0002157,2]
[346005477,1734621033424,-1000.0,0.00021717,2]
[346005478,1734621033433,-5635.6763,0.00021717,2]
[346005479,1734621033442,-3693.7561,0.00021717,2]
[346005480,1734621033451,-1000.0,0.00021717,2]
[346005481,1734621033461,-2500.0,0.00021717,2]
[346005482,1734621033470,-9416.72350888,0.00021717,2]
[346005483,1734621033480,-202.0,0.0002174,2]
[346005484,1734621033489,-204.0,0.0002174,2]
[346005485,1734621033499,-7500.0,0.00021816,2]
[346005486,1734621033509,-175652.86753051,0.00021817,2]
[346005487,1734621033521,-1625.64,0.00021817,2]
[346005488,1734621033533,-5300.0,0.00021817,2]
[346005489,1734621033550,-4637.05,0.00021817,2]
[346005490,1734621033567,-48527.54086949,0.00021817,2]
[346005491,1734621033577,-2027.44303924,0.00021817,2]
[346005511,1734621038124,-2972.55696076,0.00021817,2]
[346005512,1734621038134,-5035.46570467,0.00021817,2]
[346005513,1734621038144,-312.24044203,0.00021817,2]
[346005514,1734621038154,-500.0,0.00021873,2]
[346005515,1734621038164,-500.0,0.00021873,2]
[346005516,1734621038174,-352.52911214,0.00021873,2]
[346005517,1734621038183,-500.0,0.00021873,2]
[346005518,1734621038193,-500.0,0.00021873,2]
[346005519,1734621038203,-1500.0,0.000219,7]
[346005520,1734621038212,-633.31,0.00021916,2]
[346005521,1734621038222,-7500.0,0.00021916,2]
[346005522,1734621038231,-500.0,0.00021917,2]
[346005523,1734621038241,-500.0,0.00021917,2]
[346005524,1734621038250,-565.18180767,0.00021917,4]
[346005525,1734621038259,-504.45471292,0.00021917,4]
[346005526,1734621038269,-500.0,0.00021917,4]
[346005527,1734621038278,-513.99480278,0.00021917,4]
[346005528,1734621038287,-501.25030929,0.00021917,4]
[346005529,1734621038298,-500.77934677,0.00021917,4]
[346005530,1734621038308,-502.4199529,0.00021917,4]
[346005531,1734621038317,-500.0,0.00021917,4]
[346005532,1734621038327,-503.74502799,0.00021917,4]
[346005533,1734621038336,-500.0,0.00021917,4]
[346005534,1734621038347,-500.0,0.00021917,4]
[346005535,1734621038357,-507.90457725,0.00021917,4]
[346005536,1734621038368,-500.0,0.00021917,4]
[346005537,1734621038378,-611.68455386,0.00021917,4]
[346005538,1734621038387,-500.0,0.00021917,4]
[346005539,1734621038397,-500.0,0.00021917,4]
[346005540,1734621038406,-501.50529978,0.00021917,4]
[346005541,1734621038416,-510.97618111,0.00021917,4]
[346005542,1734621038426,-503.83862218,0.00021917,4]
[346005543,1734621038436,-323.80932083,0.00021917,4]
[346005544,1734621038445,-500.67462845,0.00021917,4]
[346005546,1734621038454,-500.0,0.00021917,4]
[346005547,1734621038464,-184.80957,0.00021917,4]
[346005549,1734621038474,-533.840137,0.00021917,4]
[346005551,1734621038483,-500.0,0.00021917,4]
[346005553,1734621038493,-500.0,0.00021917,4]
[346005555,1734621038502,-500.0,0.00021917,4]
[346005557,1734621038512,-500.0,0.00021917,4]
[346005559,1734621038521,-500.0,0.00021917,4]
[346005561,1734621038531,-500.0,0.00021917,7]
[346005563,1734621038542,-500.0,0.00021917,4]
[346005565,1734621038551,-506.54,0.00021917,4]
[346005567,1734621038562,-606.72018776,0.00021917,4]
[346005569,1734621038571,-500.0,0.00021917,4]
[346005570,1734621038581,-500.0,0.00021917,4]
[346005572,1734621038590,-557.87,0.00021917,4]
[346005574,1734621038601,-500.0,0.00021917,4]
[346005576,1734621038611,-300.0,0.00021917,4]
[346005577,1734621038621,-152.00434192,0.00021917,4]
[346005578,1734621038634,-347.99565808,0.00021917,4]
[346005579,1734621038644,-175.25434031,0.00021917,4]
[346005581,1734621038655,-324.74565969,0.00021917,4]
[346005583,1734621038665,-500.0,0.00021917,4]
[346005585,1734621038675,-500.0,0.00021917,4]
[346005586,1734621038685,-500.0,0.00021917,4]
[346005587,1734621038694,-500.0,0.00021917,4]
[346005588,1734621038704,-500.0,0.00021917,4]
[346005589,1734621038713,-500.0,0.00021917,4]
[346005590,1734621038722,-500.0,0.00021917,4]
[346005591,1734621038732,-500.0,0.00021917,4]
[346005592,1734621038742,-514.02609053,0.00021917,4]
[346005593,1734621038751,-500.0,0.00021917,4]
[346005594,1734621038761,-500.0,0.00021917,4]
[346005595,1734621038773,-500.0,0.00021917,4]
[346005596,1734621038783,-500.0,0.00021917,4]
[346005597,1734621038793,-500.0,0.00021917,4]
[346005598,1734621038803,-500.0,0.00021917,4]
[346005599,1734621038815,-500.0,0.00021917,4]
[346005600,1734621038824,-500.0,0.00021917,4]
[346005601,1734621038834,-492.35665484,0.00021917,4]
[346005602,1734621038843,-500.0,0.00021917,4]
[346005603,1734621038853,-413.27764321,0.00021917,4]
[346005604,1734621038869,-86.72235679,0.00021917,4]
[346005605,1734621038879,-500.0,0.00021917,4]
[346005606,1734621038890,-500.0,0.00021917,4]
[346005607,1734621038900,-500.0,0.00021917,4]
[346005608,1734621038910,-500.0,0.00021917,4]
[346005609,1734621038919,-500.0,0.00021917,4]
[346005610,1734621038929,-501.66880881,0.00021917,2]
[346005611,1734621038943,-500.0,0.00021917,4]
[346005612,1734621038956,-507.01544707,0.00021917,4]
[346005613,1734621038969,-500.0,0.00021917,4]
[346005614,1734621038982,-500.0,0.00021917,4]
[346005615,1734621038994,-500.0,0.00021917,4]
[346005616,1734621039007,-529.38,0.00021917,4]
[346005617,1734621039019,-500.0,0.00021917,4]
[346005618,1734621039031,-500.0,0.00021917,4]
[346005619,1734621039046,-527.31517881,0.00021917,4]
[346005620,1734621039059,-500.0,0.00021917,4]
[346005621,1734621039071,-283.64852395,0.00021917,4]
[346005622,1734621039084,-360.19524963,0.00021917,4]
[346005623,1734621039096,-500.0,0.00021917,4]
[346005624,1734621039108,-500.0,0.00021917,4]
[346005625,1734621039118,-500.0,0.00021917,4]
[346005626,1734621039130,-526.98280186,0.00021917,4]
[346005627,1734621039141,-500.0,0.00021917,4]
[346005628,1734621039154,-500.0,0.00021917,4]
[346005629,1734621039166,-500.0,0.00021917,4]
[346005630,1734621039177,-500.0,0.00021917,4]
[346005631,1734621039189,-500.0,0.00021917,4]
[346005632,1734621039201,-500.0,0.00021917,4]
[346005633,1734621039212,-500.0,0.00021917,4]
[346005634,1734621039225,-500.0,0.00021917,4]
[346005635,1734621039236,-500.0,0.00021917,4]
[346005636,1734621039247,-500.0,0.00021917,4]
[346005637,1734621039258,-500.0,0.00021917,4]
[346005638,1734621039271,-500.0,0.00021917,4]
[346005639,1734621039283,-500.0,0.00021917,4]
[346005640,1734621039298,-500.0,0.00021917,4]
[346005641,1734621039309,-500.0,0.00021917,4]
[346005642,1734621039324,-500.0,0.00021917,4]
[346005643,1734621039336,-357.48387063,0.00021917,4]
[346005644,1734621039347,-500.0,0.00021917,4]
[346005645,1734621039359,-500.0,0.00021917,4]
[346005646,1734621039371,-500.0,0.00021917,4]
[346005647,1734621039382,-500.0,0.00021917,4]
[346005648,1734621039393,-500.0,0.00021917,4]
[346005649,1734621039404,-500.0,0.00021917,4]
[346005650,1734621039415,-500.0,0.00021917,4]
[346005651,1734621039427,-500.0,0.00021917,4]
[346005652,1734621039438,-500.0,0.00021917,4]
[346005653,1734621039450,-500.0,0.00021917,4]
[346005654,1734621039462,-500.0,0.00021917,4]
[346005655,1734621039473,-200.55767374,0.00021917,4]
[346005656,1734621039484,-500.0,0.00021917,4]
[346005657,1734621039494,-500.0,0.00021917,4]
[346005658,1734621039506,-500.0,0.00021917,4]
[346005659,1734621039522,-452.62269722,0.00021917,4]
[346005660,1734621039533,-500.0,0.00021917,4]
[346005661,1734621039549,-500.0,0.00021917,4]
[346005662,1734621039560,-500.0,0.00021917,4]
[346005663,1734621039572,-500.0,0.00021917,4]
[346005664,1734621039584,-500.0,0.00021917,4]
[346005665,1734621039596,-500.0,0.00021917,2]
[346005666,1734621039608,-360.45519209,0.00021917,4]
[346005667,1734621039624,-139.54480791,0.00021917,4]
[346005668,1734621039637,-500.0,0.00021917,4]
[346005669,1734621039649,-500.0,0.00021917,4]
[346005670,1734621039660,-500.0,0.00021917,4]
[346005671,1734621039672,-476.27839376,0.00021917,4]
[346005672,1734621039683,-500.0,0.00021917,4]
[346005673,1734621039694,-13.22732075,0.00021917,4]
[346005674,1734621039707,-486.77267925,0.00021917,4]
[346005675,1734621039719,-500.0,0.00021917,4]
[346005676,1734621039732,-276.28775377,0.00021917,4]
[346005677,1734621039745,-500.0,0.00021917,4]
[346005678,1734621039757,-582.57,0.00021917,4]
[346005679,1734621039768,-500.0,0.00021917,4]
[346005680,1734621039781,-500.0,0.00021917,4]
[346005681,1734621039795,-513.61370643,0.00021917,4]
[346005682,1734621039805,-500.0,0.00021917,4]
[346005683,1734621039822,-500.0,0.00021917,4]
[346005684,1734621039833,-500.0,0.00021917,4]
[346005685,1734621039844,-500.0,0.00021917,4]
[346005686,1734621039856,-500.0,0.00021917,4]
[346005688,1734621039869,-500.0,0.00021917,4]
[346005689,1734621039881,-500.0,0.00021917,4]
[346005690,1734621039894,-500.0,0.00021917,4]
[346005691,1734621039905,-500.0,0.00021917,4]
[346005692,1734621039916,-500.0,0.00021917,4]
[346005693,1734621039927,-500.0,0.00021917,4]
[346005694,1734621039938,-564.49935671,0.00021917,4]
[346005695,1734621039949,-500.0,0.00021917,4]
[346005696,1734621039959,-500.0,0.00021917,4]
[346005697,1734621039973,-500.0,0.00021917,4]
[346005698,1734621039984,-500.0,0.00021917,4]
[346005699,1734621039996,-380.21558379,0.00021917,4]
[346005701,1734621040276,-191.67798,0.00021707,2]
[346005702,1734621040287,-119.78441621,0.00021917,4]
[346005703,1734621040301,-500.0,0.00021917,2]
[346005704,1734621040311,-503.90710207,0.00021917,4]
[346005705,1734621040322,-500.0,0.00021917,4]
[346005706,1734621040332,-500.0,0.00021917,4]
[346005707,1734621040343,-500.0,0.00021917,4]
[346005708,1734621040354,-500.0,0.00021917,4]
[346005709,1734621040365,-500.0,0.00021917,4]
[346005710,1734621040375,-500.0,0.00021917,4]
[346005711,1734621040386,-268.49170202,0.00021917,4]
[346005712,1734621040397,-500.0,0.00021917,4]
[346005713,1734621040408,-500.0,0.00021917,4]
[346005714,1734621040420,-500.0,0.00021917,4]
[346005715,1734621040431,-500.0,0.00021917,4]
[346005716,1734621040442,-500.0,0.00021917,4]
[346005717,1734621040453,-500.0,0.00021917,4]
[346005719,1734621040463,-500.0,0.00021917,4]
[346005720,1734621040474,-500.0,0.00021917,4]
[346005721,1734621040485,-500.0,0.00021917,4]
[346005722,1734621040496,-500.0,0.00021917,4]
[346005723,1734621040507,-453.95675433,0.00021917,4]
[346005724,1734621040518,-500.0,0.00021917,4]
[346005725,1734621040529,-500.0,0.00021917,4]
[346005727,1734621040540,-500.0,0.00021917,4]
[346005729,1734621040553,-500.0,0.00021917,4]
[346005730,1734621040564,-500.0,0.00021917,4]
[346005731,1734621040574,-500.0,0.00021917,4]
[346005732,1734621040585,-500.0,0.00021917,4]
[346005734,1734621040596,-500.0,0.00021917,4]
[346005735,1734621040607,-500.0,0.00021917,4]
[346005736,1734621040618,-3.17210889,0.00021917,4]
[346005737,1734621040632,-496.82789111,0.00021917,4]
[346005738,1734621040643,-500.0,0.00021917,4]
[346005739,1734621040654,-500.0,0.00021917,4]
[346005740,1734621040665,-500.0,0.00021917,4]
[346005741,1734621040676,-500.0,0.00021917,4]
[346005742,1734621040689,-500.0,0.00021917,4]
[346005743,1734621040703,-500.0,0.00021917,4]
[346005744,1734621040716,-500.0,0.00021917,4]
[346005745,1734621040729,-43.91221779,0.00021917,4]
[346005746,1734621040744,-456.08778221,0.00021917,4]
[346005747,1734621040758,-500.0,0.00021917,4]
[346005748,1734621040774,-56.51574179,0.00021917,4]
[346005749,1734621040803,-443.48425821,0.00021917,4]
[346005750,1734621040815,-524.91443922,0.00021917,4]